[Event "85th Armenian Mens-ch 2024"]
[Site "Yerevan"]
[Date "2024.12.04"]
[Round "11.5"]
[White "Davtyan, Arsen"]
[Black "Sahakyan, Aleks"]
[Result "1/2-1/2"]
[ECO "E05"]
[WhiteElo "2400"]
[BlackElo "2380"]
[Annotator "TA"]
[PlyCount "65"]
[EventDate "2024.11.24"]
[EventCountry "ARM"]
[SourceTitle "playchess.com"]
[Source "ChessBase"]
[SourceQuality "1"]
[TimeControl "40/5400+30:1800+30"]

{[%evp 21,65,6,6,6,8,0,0,0,0,0,0,9,0,0,0,0,0,0,5,0,0,0,0,0,0,0,0,0,12,0,0,0,10,19,33,44,43,36,26,24,41,0,0,2,2,3]} 1. d4 {[%emt 0:05:21]} Nf6 {[%emt 0:00:06]} 2. c4 {[%emt 0:00:17]} e6 {[%emt 0:00:05]} 3. Nf3 {[%emt 0:00:05]} d5 {[%emt 0:00:04]} 4. g3 {[%emt 0:00:04]} Be7 {[%emt 0:00:04]} 5. Bg2 {[%emt 0:00:39]} O-O {[%emt 0:00:06]} 6. O-O {[%emt 0:00:04]} dxc4 {[%emt 0:00:03]} 7. Qc2 {[%emt 0:00:08]} a6 {[%emt 0:00:09]} 8. a4 {[%emt 0:00:09]} Bd7 {[%emt 0:00:04]} 9. Qxc4 {[%emt 0:00:15]} Bc6 {[%emt 0:00:04]} 10. Bg5 {[%emt 0:00:17]} Nbd7 {[%emt 0:00:05]} 11. Nc3 {[%emt 0:01:55]} h6 {[%emt 0:00:12]} 12. Bxf6 {[%emt 0:00:08]} Nxf6 {[%emt 0:00:05]} 13. Ne5 {[%emt 0:01:38]} Bxg2 {[%emt 0:04:30]} 14. Kxg2 {[%emt 0:00:02]} Qd6 {[%emt 0:04:40]} 15. Rfd1 {[%emt 0:08:34]} c5 {[%emt 0:05:46]} 16. Qxc5 {[%emt 0:09:41]} Qxc5 {[%emt 0:00:36]} 17. dxc5 {[%emt 0:00:04]} Bxc5 {[%emt 0:00:04]} 18. Nd7 {[%emt 0:00:07]} Nxd7 {[%emt 0:01:02]} 19. Rxd7 {[%emt 0:00:05]} Rab8 {[%emt 0:00:54]} 20. Ne4 {[%emt 0:26:16]} Bb4 {[%emt 0:01:00]} 21. Rad1 {[%emt 0:08:25]} b5 {[%emt 0:02:38]} 22. axb5 {[%emt 0:03:38]} Rxb5 {[%emt 0:00:42]} 23. Ra7 {[%emt 0:00:29]} a5 {[%emt 0:12:08]} 24. Rdd7 {[%emt 0:07:03]} Re5 {[%emt 0:03:36]} 25. Kf3 {[%emt 0:01:11]} Rf5+ {[%emt 0:00:26]} 26. Kg2 {[%emt 0:05:44]} Re5 {[%emt 0:00:13]} 27. f3 {[%emt 0:00:20]} Rd5 {[%emt 0:00:10]} 28. Rxd5 {[%emt 0:03:35]} exd5 {[%emt 0:00:11]} 29. Nf2 {[%emt 0:00:03]} Rb8 {[%emt 0:05:42]} 30. Nd3 {[%emt 0:00:23]} Rb5 {[%emt 0:02:55]} 31. g4 {[%emt 0:10:11]} Bc5 {[%emt 0:03:21]} 32. Ra8+ {[%emt 0:05:16]} Kh7 {[%emt 0:00:13]} 33. Nxc5 {[%emt 0:02:29] Weighted Error Value: White=0.04 (flawless) /Black=0.02 (flawless) .  Inaccurate:     	White=1     	---        OK:         	White=9     	Black=11     Best:        	---       	Black=1} 1/2-1/2

[Event "85th Armenian Mens-ch 2024"]
[Site "Yerevan"]
[Date "2024.11.27"]
[Round "11.5"]
[White "Davtyan, Arsen"]
[Black "Sahakyan, Aleks"]
[Result "*"]
[ECO "C96"]
[WhiteElo "2400"]
[BlackElo "2380"]
[Annotator "TA"]
[PlyCount "91"]
[EventDate "2024.11.24"]
[EventCountry "ARM"]
[SourceTitle "playchess.com"]
[Source "ChessBase"]
[SourceQuality "1"]
[TimeControl "40/5400+30:1800+30"]

{[%evp 24,91,27,23,71,62,78,37,72,39,43,30,34,37,32,49,41,0,0,0,39,-20,37,35,33,18,68,66,61,33,52,52,36,20,45,52,115,112,117,120,98,111,107,108,115,117,121,109,100,94,125,119,156,124,287,272,284,289,341,328,501,504,459,464,494,467,490,481,477,466]} 1. e4 {[%emt 0:00:01]} e5 {[%emt 0:08:19]} 2. Nf3 {[%emt 0:00:14]} Nc6 {[%emt 0:00:06]} 3. Bb5 {[%emt 0:00:30]} a6 {[%emt 0:00:07]} 4. Ba4 {[%emt 0:00:33]} Nf6 {[%emt 0:00:08]} 5. O-O {[%emt 0:00:06]} Be7 {[%emt 0:08:05]} 6. Re1 {[%emt 0:00:18]} b5 {[%emt 0:00:06]} 7. Bb3 {[%emt 0:00:06]} d6 {[%emt 0:00:44]} 8. c3 {[%emt 0:00:08]} O-O {[%emt 0:00:15]} 9. h3 {[%emt 0:00:02]} Na5 {[%emt 0:01:30]} 10. Bc2 {[%emt 0:00:06]} c5 {[%emt 0:00:05]} 11. d4 {[%emt 0:00:03]} Qc7 {[%emt 0:10:26]} 12. Nbd2 {[%emt 0:00:22][%cal Bb1d2,Bd2f1,Bf1g3][%mdl 32]} exd4 {[%emt 0:04:30]} 13. cxd4 {[%emt 0:00:47]} Bb7 {[%emt 0:01:38]} (13... cxd4 $11 {should be considered.} 14. Nxd4 Re8) 14. d5 $16 {[%emt 0:01:36]} Nd7 {[%emt 0:01:06]} 15. Nf1 {[%emt 0:02:30]} Bf6 {[%emt 0:00:46]} 16. Ng3 {[%emt 0:00:05]} g6 {[%emt 0:07:52]} 17. Nh2 {[%emt 0:04:21]} Nc4 {[%emt 0:15:04]} 18. Rb1 $1 {[%emt 0:01:33]} Bg7 {[%emt 0:06:23]} 19. b3 {[%emt 0:02:29]} Ncb6 $1 {[%emt 0:02:08][%cal Bc4b6,Bb6d7,Bd7e5,Be5d3][%mdl 32]} 20. h4 {[%emt 0:06:08]} h5 {[%emt 0:08:49]} 21. Nf3 {[%emt 0:15:22]} Nf6 {[%emt 0:03:02]} 22. Ng5 {[%emt 0:00:20]} (22. Bb2 $14) 22... Rae8 {[%emt 0:05:07]} (22... Ng4 $11) 23. Bb2 $14 {[%emt 0:04:57][%cal Og3f5]} Nbd7 {[%emt 0:01:47]} 24. Qd2 {[%emt 0:00:17]} Re7 {[%emt 0:00:33]} (24... a5 $11) 25. Bd3 {[%emt 0:04:23]} Rfe8 {[%emt 0:01:51]} 26. Rbc1 {[%emt 0:00:07]} Ne5 {[%emt 0:00:41]} 27. Be2 {[%emt 0:00:21]} Qb6 {[%emt 0:01:00]} 28. b4 {[%emt 0:07:59]} cxb4 {[%emt 0:02:14]} 29. Qxb4 {[%emt 0:00:22]} Nfg4 {[%emt 0:00:31]} ({Better is} 29... Ned7 $14) 30. Bd4 $16 {[%emt 0:04:51][%cal Bb2d4,Bd4b6,Bb6a5][%mdl 32] Active counter play!} Nd3 {[%emt 0:01:40]} 31. Bxb6 {[%emt 0:00:05]} Nxb4 {[%emt 0:00:05] [#]} 32. Ba5 $1 {[%emt 0:00:03]} Bd4 {[%emt 0:05:09] [#]} 33. Nh3 $1 $36 {[%emt 0:26:03][%cal Bg5h3,Bh3f4,Bf4d3,Bd3e5][%mdl 2080] Black is under strong pressure.} (33. Bxb4 $2 Bxf2+ (33... Nxf2 $2 34. Kf1 $18) 34. Kf1 Bxg3 35. Bxg4 Bxe1 (35... hxg4 $2 36. Red1 $19) 36. Rxe1 hxg4 $19) (33. Bxg4 Nd3 (33... Nxa2 $2 34. Rc2 $18) 34. Red1 Bxf2+ (34... Nxc1 35. Rxd4 hxg4 36. Rd2 $19) 35. Kf1 Bxg3 36. Rxd3 Bf4 $19 (36... Bxh4 37. Nf3 $16)) 33... Bc5 {[%emt 0:03:54]} 34. a3 {[%emt 0:00:04]} Nxd5 {[%emt 0:01:49]} 35. exd5 {[%emt 0:00:04]} Bxa3 {[%emt 0:00:32]} 36. Rcd1 {[%emt 0:02:10]} Nf6 {[%emt 0:01:16]} 37. Nf4 {[%emt 0:01:50]} Bb2 {[%emt 0:00:28]} 38. Nd3 {[%emt 0:04:33]} Be5 $2 {[%emt 0:00:39]} (38... Bd4 $16 {was worth a try.} 39. Bf3 Rxe1+ 40. Nxe1 Ba7) 39. Nxe5 $18 {[%emt 0:00:15]} dxe5 {[%emt 0:00:30]} 40. Bf3 {[%emt 0:00:00]} e4 {[%emt 0:00:00]} 41. Bb4 {[%emt 0:02:35]} Rc7 {[%emt 0:02:37]} (41... Re5 $142) 42. Nxe4 {[%emt 0:02:06]} Nxe4 {[%emt 0:00:22]} 43. Rxe4 {[%emt 0:00:08]} Rxe4 {[%emt 0:00:11]} 44. Bxe4 {[%emt 0:00:04] Threatens to win with d6.} Rc4 {[%emt 0:00:12]} 45. d6 {[%emt 0:00:04] Threatening mate with d7.} Bc8 {[%emt 0:00:15] [#]} 46. Bb7 $1 {[%emt 0:00:09][%mdl 512]} *

[Event "85th Armenian Mens-ch 2024"]
[Site "Yerevan"]
[Date "2024.12.04"]
[Round "11.6"]
[White "Agasarov, Benik"]
[Black "Babujian, Levon"]
[Result "1/2-1/2"]
[ECO "E11"]
[WhiteElo "2410"]
[BlackElo "2330"]
[Annotator "TA"]
[PlyCount "180"]
[EventDate "2024.11.24"]
[EventCountry "ARM"]
[SourceTitle "playchess.com"]
[Source "ChessBase"]
[SourceQuality "1"]
[TimeControl "40/5400+30:1800+30"]

{[%evp 17,180,25,34,17,28,22,30,25,29,27,26,20,32,26,25,27,50,46,75,82,75,57,53,54,70,58,69,63,75,71,85,52,48,46,69,78,64,65,121,94,123,82,115,108,119,110,107,112,126,33,33,40,40,40,40,40,40,14,25,14,22,22,24,2,6,8,6,8,6,6,6,0,0,0,0,0,0,0,0,0,0,0,0,0,0,0,0,0,0,0,0,0,0,0,0,0,0,0,0,0,0,0,0,0,0,0,0,0,0,-15,0,-110,-110,-110,0,0,0,0,0,0,0,0,0,0,0,0,0,0,0,0,0,0,0,0,0,0,0,0,0,0,0,0,0,0,0,0,0,0,0,0,0,0,0,0,0,0,0,0,0,0,0,0,0,0,0]} 1. d4 {[%emt 0:00:03]} Nf6 {[%emt 0:00:06]} 2. c4 {[%emt 0:00:05]} e6 {[%emt 0:00:20]} 3. Nf3 {[%emt 0:00:06]} Bb4+ {[%emt 0:00:33]} 4. Bd2 {[%emt 0:01:00]} c5 {[%emt 0:00:24]} 5. Bxb4 {[%emt 0:00:34]} cxb4 {[%emt 0:00:05]} 6. e3 {[%emt 0:00:04]} b6 {[%emt 0:00:46]} 7. Bd3 {[%emt 0:00:59]} Bb7 {[%emt 0:00:17]} 8. Nbd2 {[%emt 0:00:18]} O-O {[%emt 0:00:58]} 9. O-O {[%emt 0:03:09]} d6 {[%emt 0:00:14]} 10. Qc2 {[%emt 0:00:06]} Nbd7 {[%emt 0:00:55]} 11. Ng5 {[%emt 0:14:26]} h6 {[%emt 0:00:54]} 12. Nge4 {[%emt 0:01:06]} Qc7 {[%emt 0:04:28]} 13. Rac1 {[%emt 0:05:41]} Rac8 {[%emt 0:01:21]} 14. Ng3 {[%emt 0:04:37]} a5 {[%emt 0:04:00]} 15. Qd1 {[%emt 0:05:05]} Qb8 {[%emt 0:04:53]} 16. e4 {[%emt 0:02:51]} Qa7 {[%emt 0:03:09][%cal Ob6b5]} 17. Nf3 {[%emt 0:04:34]} a4 {[%emt 0:02:39]} 18. Qd2 {[%emt 0:01:57]} Qa5 {[%emt 0:01:40]} 19. Qf4 {[%emt 0:01:05]} Rfd8 {[%emt 0:02:41]} 20. Rfd1 {[%emt 0:14:25]} (20. Qxd6 $2 {too greedy.} Nc5 21. dxc5 Rxd6 22. cxd6 Rd8 $17) 20... Nf8 {[%emt 0:01:46]} 21. d5 {[%emt 0:10:43]} Ng6 {[%emt 0:00:54]} 22. Qd2 {[%emt 0:00:51]} Qc5 {[%emt 0:01:02]} 23. h3 {[%emt 0:01:55]} Rc7 {[%emt 0:01:21]} 24. dxe6 {[%emt 0:02:27]} fxe6 {[%emt 0:00:22]} 25. Bb1 {[%emt 0:03:13]} e5 {[%emt 0:04:22]} 26. Ne1 {[%emt 0:00:06]} Qa5 {[%emt 0:01:55]} 27. b3 {[%emt 0:01:53]} Rf7 {[%emt 0:06:00]} (27... Nf4 $14) 28. f3 {[%emt 0:01:32]} Ne7 {[%emt 0:06:09][%cal Bg6e7,Be7c6,Bc6d4][%mdl 32]} 29. Bd3 {[%emt 0:04:36]} Qc5+ {[%emt 0:02:36]} 30. Kh2 {[%emt 0:01:00]} axb3 {[%emt 0:00:46]} 31. axb3 {[%emt 0:00:01]} Nc6 {[%emt 0:00:37]} 32. Bc2 {[%emt 0:00:54] Threatens to win with Nd3.} Nd4 {[%emt 0:01:04]} 33. Ne2 {[%emt 0:00:55]} (33. Nd3 $16 Qc7 34. Nxb4) 33... Nxe2 $14 {[%emt 0:23:33]} 34. Qxe2 {[%emt 0:00:04]} Nh5 {[%emt 0:00:14]} 35. Qd2 {[%emt 0:02:18]} Nf4 {[%emt 0:04:32]} 36. Nd3 {[%emt 0:00:04]} Nxd3 {[%emt 0:00:29]} 37. Bxd3 {[%emt 0:00:59]} Ra8 {[%emt 0:01:02]} 38. Ra1 {[%emt 0:02:59]} Ra5 {[%emt 0:00:12]} 39. Bf1 {[%emt 0:01:02] Black should prevent Rxa5.} Rf6 {[%emt 0:02:46]} 40. Ra4 {[%emt 0:00:00]} Rxa4 {[%emt 0:00:00]} 41. bxa4 {[%emt 0:01:09]} Bc6 {[%emt 0:04:41][%cal Bb7c6,Bc6a4,Ba4c2][%mdl 32]} 42. Rb1 {[%emt 0:00:16]} Bxa4 {[%emt 0:02:41]} 43. Qxb4 {[%emt 0:00:35]} Bc2 {[%emt 0:01:46]} 44. Qxc5 {[%emt 0:02:06]} dxc5 $11 {[%emt 0:00:15][%mdl 4096] Endgame KRB-KRB} 45. Rc1 {[%emt 0:00:19]} Ba4 {[%emt 0:00:06]} 46. Ra1 {[%emt 0:00:06]} Bc6 {[%emt 0:00:18]} 47. Rb1 {[%emt 0:00:50]} Be8 {[%emt 0:01:41]} 48. Kg3 {[%emt 0:00:51]} Rd6 {[%emt 0:00:31]} 49. Kf2 {[%emt 0:00:18]} Kf8 {[%emt 0:00:57]} 50. Ke3 {[%emt 0:00:17]} g5 {[%emt 0:01:44]} 51. Bd3 {[%emt 0:00:25]} Ke7 {[%emt 0:00:38]} 52. Ra1 {[%emt 0:00:09]} Rd7 {[%emt 0:00:41]} 53. Ra8 {[%emt 0:04:01]} Rb7 {[%emt 0:00:32]} 54. Kd2 {[%emt 0:00:25]} h5 {[%emt 0:00:57]} 55. Kc3 {[%emt 0:00:24]} h4 {[%emt 0:00:48]} 56. Be2 {[%emt 0:00:48]} Bf7 {[%emt 0:07:15]} 57. Bd3 {[%emt 0:00:48]} Kf6 {[%emt 0:00:18]} 58. Ra1 {[%emt 0:06:34]} Be6 {[%emt 0:00:12]} 59. Be2 {[%emt 0:01:15]} Rd7 {[%emt 0:01:33]} 60. Bd3 {[%emt 0:01:14]} g4 {[%emt 0:01:09]} 61. fxg4 {[%emt 0:01:43]} Kg5 {[%emt 0:00:09]} 62. Rf1 {[%emt 0:01:11]} Ra7 {[%emt 0:00:53]} 63. Rf3 {[%emt 0:02:33]} Ra2 {[%emt 0:02:05]} 64. g3 {[%emt 0:00:58] [#]} (64. Bf1 $11) 64... hxg3 $1 $17 {[%emt 0:00:39]} 65. Rxg3 {[%emt 0:00:03] [#]} Rf2 {[%emt 0:07:29] Repels Rf3} ({Better is} 65... Ra3+ $1 $17 66. Kb2 Kf4 67. Kxa3 Kxg3) 66. Rg1 $11 {[%emt 0:03:09]} Rf3 {[%emt 0:00:55]} 67. Rb1 {[%emt 0:00:51]} Rxh3 {[%emt 0:00:43]} 68. Rxb6 {[%emt 0:00:04]} Bxg4 {[%emt 0:00:07]} 69. Kd2 {[%emt 0:00:27] Repels Be2} Rh6 {[%emt 0:00:46]} 70. Rb5 {[%emt 0:00:13]} Rc6 {[%emt 0:01:09]} 71. Ke3 {[%emt 0:00:04]} Be6 {[%emt 0:00:36]} 72. Be2 {[%emt 0:00:20]} Kf6 {[%emt 0:01:15]} 73. Rb7 {[%emt 0:00:22]} Ra6 {[%emt 0:01:41]} 74. Rb5 {[%emt 0:00:02]} Ra3+ {[%emt 0:00:07]} 75. Kf2 {[%emt 0:00:49]} Ra2 {[%emt 0:02:03][%cal Oa2e2]} 76. Rb6 $1 {[%emt 0:00:02]} Ke7 {[%emt 0:00:14]} 77. Ke3 {[%emt 0:00:17]} Ra3+ {[%emt 0:00:27]} 78. Kd2 {[%emt 0:00:21]} Kd7 {[%emt 0:01:25]} 79. Bd3 {[%emt 0:00:07]} Ra2+ {[%emt 0:00:14]} 80. Kc3 {[%emt 0:00:06]} Rg2 {[%emt 0:00:14]} 81. Ra6 {[%emt 0:00:53]} Bg4 {[%emt 0:01:45]} 82. Ra7+ {[%emt 0:00:17]} Kd6 {[%emt 0:00:11]} 83. Ra6+ {[%emt 0:00:04]} Kc7 {[%emt 0:00:03]} 84. Rf6 {[%emt 0:00:19]} Bh3 {[%emt 0:00:54]} 85. Rh6 {[%emt 0:00:22]} Rg3 {[%emt 0:00:13] Strongly threatening ...Bf1.} 86. Kd2 {[%emt 0:00:05]} Bd7 {[%emt 0:00:18]} 87. Kc3 {[%emt 0:00:52]} Bc6 {[%emt 0:00:33]} 88. Kd2 {[%emt 0:00:05]} Rg2+ {[%emt 0:00:09]} 89. Kc3 {[%emt 0:00:05]} Rg4 {[%emt 0:00:08]} 90. Rh5 {[%emt 0:00:25]} Kd6 {[%emt 0:17:17]} 1/2-1/2

[Event "85th Armenian Mens-ch 2024"]
[Site "Yerevan"]
[Date "2024.11.27"]
[Round "11.6"]
[White "Agasarov, Benik"]
[Black "Babujian, Levon"]
[Result "1-0"]
[ECO "A20"]
[WhiteElo "2410"]
[BlackElo "2330"]
[Annotator "RC"]
[PlyCount "55"]
[EventDate "2024.11.24"]
[EventCountry "ARM"]
[SourceTitle "playchess.com"]
[Source "ChessBase"]
[SourceQuality "1"]
[TimeControl "40/5400+30:1800+30"]

1. c4 {[%emt 0:00:05]} e5 {[%emt 0:01:16]} 2. g3 {[%emt 0:00:13]} Nf6 {[%emt 0:01:11]} 3. Bg2 {[%emt 0:00:06]} c6 {[%emt 0:00:07]} 4. d4 {[%emt 0:00:14]} e4 {[%emt 0:02:19]} 5. a3 {[%emt 0:00:03]} d5 {[%emt 0:02:49]} 6. Nc3 {[%emt 0:00:01]} h6 {[%emt 0:06:37]} 7. f3 {[%emt 0:01:02]} Bf5 {[%emt 0:02:45]} 8. fxe4 {[%emt 0:06:14]} dxe4 {[%emt 0:07:27]} 9. Nh3 {[%emt 0:00:08]} c5 {[%emt 0:06:58]} 10. d5 {[%emt 0:01:20]} Bd6 {[%emt 0:00:24]} 11. O-O {[%emt 0:11:51]} Bxh3 {[%emt 0:04:44]} 12. Bxh3 {[%emt 0:00:14]} O-O {[%emt 0:00:39]} 13. Qc2 {[%emt 0:04:12]} Re8 {[%emt 0:00:38]} 14. Bf4 {[%emt 0:08:20]} Be5 {[%emt 0:08:34]} 15. Bxe5 {[%emt 0:12:59]} Rxe5 {[%emt 0:00:06]} 16. Rf4 {[%emt 0:01:21]} e3 {[%emt 0:12:07]} 17. Raf1 {[%emt 0:04:47]} Nbd7 {[%emt 0:01:30]} 18. Bxd7 {[%emt 0:01:23]} Qxd7 {[%emt 0:10:00]} 19. Rxf6 {[%emt 0:00:39]} gxf6 {[%emt 0:01:08]} 20. Ne4 {[%emt 0:00:07]} Rxe4 {[%emt 0:01:28]} 21. Qxe4 {[%emt 0:00:02]} Re8 {[%emt 0:00:25]} 22. Qh4 {[%emt 0:00:41]} f5 {[%emt 0:01:31]} 23. Qxh6 {[%emt 0:00:23]} Re4 {[%emt 0:00:45]} 24. Qg5+ {[%emt 0:00:11]} Kf8 {[%emt 0:00:31]} 25. Rxf5 {[%emt 0:00:32]} Rxc4 {[%emt 0:00:32]} 26. Qh6+ {[%emt 0:00:14]} Ke7 {[%emt 0:00:18]} 27. Re5+ {[%emt 0:00:13]} Kd8 {[%emt 0:00:22]} 28. Qf8+ {[%emt 0:00:07]} 1-0